bitfinex/quotes_ETHUSD_20240902
["timestamp","ask_amount","ask_price","bid_price","bid_amount"]
[1725308302787,3.94044,2537.8,2537.5,0.14616254]
[1725308302988,8.12987053,2538.0,2537.5,3.9408]
[1725308303331,7.8803,2538.0,2537.6,0.14607596]
[1725308304028,3.94011,2538.0,2537.6,0.14607596]
[1725308304236,7.88034,2538.0,2537.6,0.14607596]
[1725308304380,3.94011,2538.0,2537.6,0.14607596]
[1725308305926,3.93956,2538.4,2537.8,3.94027]
[1725308306132,3.93956,2538.4,2537.9,3.94023]
[1725308306133,3.0,2538.3,2537.9,3.94023]
[1725308306294,3.0,2538.3,2537.9,4.08604626]
[1725308307316,3.93966,2538.3,2537.9,4.08604626]
[1725308307531,3.93966,2538.3,2537.9,0.14581626]
[1725308308024,7.8794,2538.3,2537.8,3.94041]
[1725308308195,3.93966,2538.3,2538.0,0.14572971]
[1725308308542,5.14657605,2538.3,2538.1,0.14564316]
[1725308308694,3.93966,2538.3,2538.1,0.14564316]
[1725308308892,3.93966,2538.3,2537.9,3.94024]
[1725308309125,3.93966,2538.3,2538.0,0.14572971]
[1725308309627,7.18976053,2538.7,2538.0,0.63312851]
[1725308309834,11.12888053,2538.7,2538.2,3.93979]
[1725308309988,11.12888053,2538.7,2538.2,3.93971]
[1725308310191,11.12888053,2538.7,2538.3,0.1454701]
[1725308310420,3.93918,2538.6,2538.3,0.1454701]
[1725308310732,8.94154058,2538.7,2538.3,0.1454701]
[1725308310892,12.88059058,2538.7,2538.3,0.1454701]
[1725308311293,3.93922,2538.6,2538.3,0.1454701]
[1725308311489,12.88059058,2538.7,2538.3,0.1454701]
[1725308311689,8.94154058,2538.7,2538.3,4.0851001]
[1725308311995,12.88058058,2538.7,2538.3,0.1454701]
[1725308312939,5.22736806,2538.6,2538.3,0.1454701]
[1725308313103,3.9394,2538.5,2538.3,0.1454701]
[1725308313309,3.9394,2538.5,2538.1,2.4366]
[1725308313632,3.9394,2538.5,2538.2,0.14555663]
[1725308313937,3.93931,2538.6,2538.2,0.14555663]
[1725308314226,4.18976053,2538.7,2538.3,3.93962]
[1725308314428,8.12887053,2538.7,2538.2,5.46551229]
[1725308314626,8.12887053,2538.7,2538.4,0.1451056]
[1725308314828,8.12887053,2538.7,2538.2,5.31995566]
[1725308314829,8.12887053,2538.7,2538.3,0.14523536]
[1725308315039,8.12887053,2538.7,2538.5,0.14506231]
[1725308315334,8.12887053,2538.7,2538.6,0.1449758]
[1725308315689,8.12887053,2538.7,2538.2,3.93974]
[1725308315916,4.18976053,2538.7,2538.3,4.08485536]
[1725308316919,8.12890053,2538.7,2538.3,0.14523536]
[1725308317143,4.18976053,2538.7,2538.3,0.14523536]
[1725308317445,3.9392,2538.6,2538.2,3.93977]
[1725308317632,3.9392,2538.6,2538.4,0.14508089]
[1725308317795,3.9392,2538.6,2538.3,0.14516742]
[1725308317991,3.9392,2538.6,2538.5,0.14499438]
[1725308318191,3.9392,2538.6,2538.4,0.14508089]
[1725308318416,3.9392,2538.6,2538.2,3.93977]
[1725308318625,3.9392,2538.6,2538.5,0.14499438]
[1725308319142,3.9392,2538.6,2538.1,6.45531869]
[1725308319326,3.9392,2538.6,2538.5,0.14499438]
[1725308319637,3.9392,2538.6,2538.1,6.37653]
[1725308319791,3.9392,2538.6,2538.5,0.14499438]
[1725308319992,3.9392,2538.6,2538.1,6.37653]
[1725308320194,3.9392,2538.6,2538.5,0.14499438]
[1725308320430,3.9392,2538.6,2538.1,8.21496702]
[1725308320632,4.18976053,2538.7,2538.5,0.14499438]
[1725308320846,4.18976053,2538.7,2538.1,8.21496702]
[1725308320847,3.93896,2538.8,2538.3,3.93951]
[1725308321055,3.93866,2539.0,2538.6,0.14492639]
[1725308321199,3.0,2538.9,2538.3,3.93951]
[1725308321545,3.93888,2538.8,2538.3,3.93951]
[1725308321761,3.93888,2538.8,2538.4,0.14509942]
[1725308322534,7.87786,2538.8,2538.4,0.14509942]
[1725308323141,3.93906,2538.7,2538.4,0.14509942]
[1725308323434,3.93925,2538.6,2538.4,0.14509942]
[1725308323741,3.93925,2538.6,2538.1,6.77204]
[1725308323908,3.93925,2538.6,2538.5,0.14492644]
[1725308324108,3.93925,2538.6,2538.1,6.77204]
[1725308324307,3.93925,2538.6,2538.2,0.14518602]
[1725308325460,8.12878053,2538.7,2538.2,5.89865662]
[1725308325604,4.18976053,2538.7,2538.2,5.97744542]
[1725308325809,4.18976053,2538.7,2538.3,3.93961]
[1725308326151,4.18976053,2538.7,2538.4,4.08446616]
[1725308327350,6.93872,2538.9,2538.4,4.08446616]
[1725308327943,3.93889,2538.8,2538.4,0.14505616]
[1725308328752,3.93889,2538.8,2538.2,3.93978]
[1725308328753,3.93889,2538.8,2538.5,0.14490171]
[1725308328938,4.18976053,2538.7,2538.5,0.14490171]
[1725308329146,3.93917,2538.6,2538.2,3.93978]
[1725308329311,3.93917,2538.6,2538.1,6.77203]
[1725308330414,3.93917,2538.6,2538.2,3.93975]
[1725308330843,3.93917,2538.6,2538.2,4.01853716]
[1725308331012,3.93917,2538.6,2538.2,5.82559388]
[1725308331212,4.18976053,2538.7,2538.2,5.82559388]
[1725308331408,3.0,2538.9,2538.3,3.9396]
[1725308331711,3.0,2538.9,2538.4,0.57466567]
[1725308332810,3.0,2538.9,2538.5,0.14493876]
[1725308333008,6.93875,2538.9,2538.5,4.08425876]
[1725308334333,3.93875,2538.9,2538.5,4.08425876]
[1725308334863,7.87755,2538.9,2538.5,0.14493876]
[1725308335216,3.93888,2538.8,2538.5,0.14493876]
[1725308335660,3.93875,2538.9,2538.5,0.14493876]
[1725308335835,7.87761,2538.9,2538.5,2.3452]
[1725308336153,7.87761,2538.9,2538.6,0.14485225]
[1725308338154,3.93875,2538.9,2538.6,0.14485225]
[1725308341548,4.18976053,2539.0,2538.6,4.08394225]
[1725308341755,3.93851,2539.1,2538.7,3.93899]
[1725308342370,3.0,2539.2,2538.8,4.08322312]
[1725308342515,3.0,2539.2,2538.9,2.4578]
[1725308342720,6.93824,2539.2,2539.0,0.14429015]
[1725308342920,3.9384,2539.1,2539.0,0.14429015]
[1725308344356,8.12791053,2539.3,2539.0,0.14429015]
[1725308344519,12.06613053,2539.3,2539.0,0.14429015]
[1725308345322,8.12791053,2539.3,2539.0,0.14429015]
[1725308347446,8.12816053,2539.1,2539.0,0.14429015]
[1725308347628,12.06656053,2539.1,2539.0,0.14429015]
[1725308347828,3.93867,2539.0,2538.6,2.4477]
[1725308348040,3.93867,2539.0,2538.5,3.93922]
[1725308348271,4.18976053,2538.8,2538.4,0.3951]
[1725308348436,8.12864053,2538.8,2538.3,13.66725]
[1725308348768,4.18976053,2538.8,2538.4,3.93947]
[1725308349939,4.18976053,2538.8,2538.3,13.66725]
[1725308350444,3.93911,2538.7,2538.3,9.7277]
[1725308351758,3.93911,2538.7,2538.3,2.4477]
[1725308352493,3.93911,2538.7,2538.0,19.52]
[1725308352494,4.18976053,2538.4,2538.0,0.3951]
[1725308352692,8.12926053,2538.4,2538.1,0.3951]
[1725308353062,8.12938053,2538.4,2538.1,0.3951]
[1725308355179,4.18976053,2538.4,2538.1,0.3951]
[1725308356589,3.9392,2538.6,2538.1,6.70865]
[1725308356590,8.12896053,2538.6,2538.1,6.70865]
[1725308356745,4.18976053,2538.6,2538.2,3.93978]
[1725308357246,4.18976053,2538.6,2538.3,3.93957]
[1725308357443,8.12841053,2539.0,2538.5,3.9393]
[1725308357656,8.12841053,2539.0,2538.5,7.87851]
[1725308357884,8.12841053,2539.0,2538.5,10.2522]
[1725308358185,8.12841053,2539.0,2538.5,6.31294]
[1725308358186,4.18976053,2539.0,2538.5,6.31294]
[1725308358370,4.18976053,2539.0,2538.6,3.93914]
[1725308359798,8.12834053,2539.0,2538.6,3.93914]
[1725308360982,3.93858,2539.0,2538.6,3.93914]
[1725308361186,8.12834053,2539.0,2538.5,6.31302]
[1725308361887,11.52113854,2539.2,2538.6,3.93916]
[1725308362166,3.0,2539.1,2538.8,3.93883]
[1725308362888,3.0,2539.1,2538.9,0.14450278]
[1725308365364,3.0,2539.2,2538.9,0.14450278]
[1725308366813,6.93826,2539.2,2538.9,0.14450278]
[1725308367019,8.68392505,2539.2,2538.9,0.14450278]
[1725308367574,3.0,2539.2,2538.9,4.08320278]
[1725308367770,14.45644053,2539.4,2538.9,4.08320278]
[1725308367771,3.0,2539.3,2538.9,4.08320278]
[1725308368004,3.0,2539.3,2538.9,6.49370278]
[1725308369699,12.06582053,2539.4,2538.9,6.49370278]
[1725308369976,0.55,2539.3,2538.9,6.49370278]
[1725308371596,4.48813,2539.3,2538.9,6.49370278]
[1725308372101,1.74706216,2539.2,2538.9,6.49370278]
[1725308372611,1.74706216,2539.2,2538.9,6.49363278]
[1725308377125,3.0,2539.4,2539.1,3.93837]
[1725308377323,1.74706216,2539.5,2539.2,3.93818]
[1725308377491,0.70955622,2539.5,2539.2,4.08184912]
[1725308377684,4.74706216,2539.6,2539.2,4.08184912]
[1725308377912,8.68471216,2539.6,2539.2,4.08184912]
[1725308381558,6.93765,2539.6,2539.2,4.08184912]
[1725308381769,6.40881,2540.2,2539.6,3.93748]
[1725308381918,0.1257395,2540.4,2539.8,3.93731]
[1725308381919,5.68367216,2540.3,2539.8,3.93731]
[1725308382109,6.90546133,2540.3,2539.8,3.93731]
[1725308382312,3.93672,2540.2,2539.9,0.14271217]
[1725308382760,7.8735,2540.2,2539.9,0.14271217]
[1725308382915,9.62058216,2540.2,2539.7,6.37503]
[1725308383250,3.93687,2540.1,2539.7,2.4376]
[1725308383455,5.68407216,2540.0,2539.8,0.142669]
[1725308383829,5.68407216,2540.0,2539.5,6.45402758]
[1725308384028,5.68407216,2540.0,2539.9,0.14257641]
[1725308384228,5.68407216,2540.0,2539.5,7.78819276]
[1725308384459,5.68407216,2540.0,2539.9,0.14239132]
[1725308384760,5.68407216,2540.0,2539.5,10.31297]
[1725308385054,5.68407216,2540.0,2539.5,8.174087]
[1725308385258,5.68407216,2540.0,2539.6,0.14265061]
[1725308386038,9.62182216,2539.8,2539.4,7.28]
[1725308386233,3.93747,2539.7,2539.4,7.28]
[1725308386563,5.68471216,2539.6,2539.4,7.28]
[1725308386737,5.68471216,2539.6,2539.2,3.93813]
[1725308387087,1.74706216,2539.4,2539.1,12.24]
[1725308387931,3.93787,2539.5,2539.1,12.24]
[1725308388632,12.06763784,2539.6,2539.1,12.24]
[1725308388836,8.12992784,2539.6,2539.1,16.17838]
[1725308389265,12.06765784,2539.6,2539.1,16.17838]
[1725308389462,8.12992784,2539.6,2539.1,16.17838]
[1725308389975,2.3966,2539.7,2539.1,19.146667]
[1725308390154,6.93747,2539.7,2539.1,19.146667]
[1725308390350,6.93747,2539.7,2539.2,3.93821]
[1725308390563,3.93763,2539.6,2539.1,10.844987]
[1725308390882,6.93748,2539.7,2539.3,2.3953]
[1725308391739,3.0,2539.7,2539.3,6.33338]
[1725308392138,8.67944784,2539.9,2539.4,3.93784]
[1725308392588,8.12944784,2539.9,2539.4,3.93784]
[1725308392885,6.9371,2540.0,2539.5,0.13333944]
[1725308393097,4.19227784,2540.1,2539.5,1.27651238]
[1725308393305,3.93662,2540.3,2539.5,1.27651238]
[1725308393306,6.41476,2540.8,2540.1,3.93684]
[1725308393603,3.93609,2540.6,2540.1,3.93684]
[1725308393903,3.93609,2540.6,2540.2,0.13264808]
[1725308394659,3.0,2540.5,2540.2,0.13264808]
[1725308394859,6.9363,2540.5,2540.2,0.13264808]
[1725308395090,6.9363,2540.5,2540.0,6.33229]
[1725308395296,7.19227784,2540.5,2540.3,0.13240126]
[1725308395502,3.93663,2540.3,2539.7,10.27005]
[1725308395667,3.9367,2540.2,2539.7,6.33265]
[1725308396265,7.87349,2540.2,2539.7,7.399193]
[1725308396608,3.93708,2540.0,2539.5,4.33278]
[1725308396904,3.93724,2539.9,2539.5,0.3951]
[1725308397470,3.93708,2540.0,2539.5,4.33286]
[1725308398109,7.87422,2540.0,2539.5,4.33286]
[1725308398308,3.93721,2539.9,2539.5,0.3951]
[1725308398611,7.87422,2540.0,2539.5,4.33279]
[1725308398917,0.1257395,2540.4,2539.6,3.461902]
[1725308399217,0.1257395,2540.4,2539.9,7.87419]
[1725308399389,0.1257395,2540.4,2540.0,2.3953]
[1725308399568,3.1257395,2540.4,2540.0,2.3953]
[1725308399771,3.1257395,2540.4,2540.0,6.33225]
[1725308400198,7.0621395,2540.4,2540.0,2.3953]
[1725308400414,8.16196145,2540.4,2540.0,2.3953]
[1725308400720,3.1257395,2540.4,2540.0,6.33227]
[1725308401002,0.1257395,2540.4,2540.1,3.93685]
[1725308402384,0.1257395,2540.4,2540.0,2.3953]
[1725308402602,5.16198845,2540.4,2539.9,3.93713]
[1725308402764,3.93655,2540.3,2539.8,6.26303]
[1725308403618,3.93655,2540.3,2539.9,3.93713]
[1725308403796,5.16195845,2540.4,2539.9,3.93713]
[1725308404105,0.1257395,2540.4,2540.0,3.93699]
[1725308405178,0.1257395,2540.4,2540.0,7.8739]
[1725308405378,0.1257395,2540.4,2540.0,3.93691]
[1725308405800,0.1257395,2540.4,2540.0,7.87384]
[1725308406095,0.1257395,2540.4,2540.0,3.93691]
[1725308406267,4.0622095,2540.4,2539.9,3.93715]
[1725308407168,0.1257395,2540.4,2540.0,3.93696]
[1725308407709,4.0621395,2540.4,2540.1,0.13154042]
[1725308408983,3.93657,2540.3,2540.1,0.13154042]
[1725308409189,3.93657,2540.3,2539.8,3.93717]
[1725308409190,3.93673,2540.2,2539.8,3.93717]
[1725308409730,3.93673,2540.2,2539.5,0.3951]
[1725308409731,3.93762,2539.6,2539.5,0.3951]
[1725308409875,4.725216,2539.6,2539.0,7.28]
[1725308410077,3.93797,2539.4,2539.0,7.28]
[1725308410499,3.93816,2539.3,2539.0,7.28]
[1725308410798,3.93772,2539.6,2539.0,13.52923]
[1725308410998,7.87543,2539.6,2539.1,0.728]
[1725308411194,7.87544,2539.6,2539.1,0.728]
[1725308411419,3.93771,2539.6,2539.1,0.728]
[1725308411803,7.87543,2539.6,2539.1,0.728]
[1725308412699,7.87543,2539.6,2539.0,13.52923]
[1725308412700,3.93783,2539.5,2539.0,13.52923]
[1725308414321,3.93771,2539.6,2539.0,6.24923]
[1725308414708,3.93771,2539.6,2539.0,3.93843]
[1725308415131,3.93787,2539.5,2539.0,3.93843]
[1725308416221,7.87601,2539.4,2538.8,23.45876]
[1725308416428,3.93795,2539.4,2538.8,7.28]
[1725308416577,7.87669,2539.2,2538.8,7.28]
[1725308416778,7.87669,2539.2,2538.7,0.3951]
[1725308416779,3.93827,2539.2,2538.7,0.3951]
[1725308417128,3.93858,2539.0,2538.7,0.3951]
[1725308417285,3.93858,2539.0,2538.6,0.3951]
[1725308417621,7.87725,2539.0,2538.6,0.3951]
[1725308418130,3.93883,2538.9,2538.6,0.3951]
[1725308419180,3.93858,2539.0,2538.6,0.3951]
[1725308420421,3.93858,2539.0,2538.6,4.33427]
[1725308421490,3.93858,2539.0,2538.6,3.93917]
[1725308422739,3.0,2539.5,2538.9,3.9387]
[1725308422894,3.0,2539.4,2539.0,3.93846]
[1725308423099,3.0,2539.4,2539.0,4.05954755]
[1725308423913,4.19227784,2539.7,2539.1,6.33881]
[1725308423914,3.93759,2539.7,2539.1,6.33881]
[1725308424118,3.93733,2539.8,2539.4,3.93785]
[1725308424318,3.93733,2539.8,2539.2,7.95500465]
[1725308424626,3.93728,2539.9,2539.5,0.12083422]
[1725308424831,0.81295578,2539.8,2539.2,4.01684632]
[1725308425035,3.93728,2539.9,2539.2,4.01684632]
[1725308425215,3.93728,2539.9,2539.3,0.12100095]
[1725308425705,3.0,2539.8,2539.3,0.12100095]
[1725308426023,3.0,2539.8,2539.4,3.9379]
[1725308426231,3.0,2539.8,2539.4,4.0588145]
[1725308427651,3.0,2539.8,2539.4,4.0587545]
[1725308427939,3.0,2539.8,2539.5,2.4952]
[1725308428250,3.0,2539.8,2539.6,0.12051942]
[1725308428621,6.93715,2540.0,2539.6,0.12051942]
[1725308428943,7.330844,2540.0,2539.6,0.12051942]
[1725308429700,6.93715,2540.0,2539.6,0.12051942]
[1725308430251,3.93718,2539.9,2539.6,0.12051942]
[1725308430744,3.93718,2539.9,2539.4,3.93791]
[1725308430919,3.93718,2539.9,2539.7,0.12033426]
[1725308431100,3.93718,2539.9,2539.4,3.93791]
[1725308431300,3.93718,2539.9,2539.8,0.12024783]
[1725308431546,5.024592,2539.9,2539.4,3.93791]
[1725308431701,3.93718,2539.9,2539.8,0.17036853]
[1725308431900,3.93718,2539.9,2539.5,3.93776]
[1725308432107,3.93718,2539.9,2539.8,0.17036853]
[1725308432306,3.93718,2539.9,2539.5,3.93776]
[1725308432533,3.93718,2539.9,2539.8,0.17036853]
[1725308432746,3.93718,2539.9,2539.4,3.93786]
[1725308432954,3.93718,2539.9,2539.8,0.17036853]
[1725308433106,5.024591,2539.9,2539.4,3.93786]
[1725308433311,3.93718,2539.9,2539.4,3.93786]
[1725308433506,3.93718,2539.9,2539.5,0.1701894]
[1725308434936,3.93693,2540.1,2539.5,0.1701894]
[1725308435269,4.48701,2540.0,2539.7,2.4108]
[1725308435776,4.48701,2540.0,2539.8,0.16992417]
[1725308436284,3.93693,2540.1,2539.8,0.16992417]
[1725308437854,7.8739,2540.1,2539.8,0.16992417]
[1725308438031,3.93701,2540.0,2539.8,0.16992417]
[1725308438250,3.93716,2539.9,2539.4,7.87567]
[1725308439888,9.03481629,2539.9,2539.4,3.93781]
[1725308440048,3.9374,2539.8,2539.3,3.93807]
[1725308441084,5.09753629,2539.9,2539.4,3.93793]
[1725308441085,5.09760629,2539.9,2539.4,3.93793]
[1725308441388,3.93723,2539.9,2539.4,3.93793]
[1725308441587,3.93723,2539.9,2539.3,3.93807]
[1725308441967,3.93743,2539.8,2539.3,3.93807]
[1725308443789,3.93709,2540.0,2539.4,3.93791]
[1725308443963,3.93709,2540.0,2539.6,2.4722]
[1725308444173,8.12893784,2540.3,2539.7,3.93736]
[1725308444493,6.93673,2540.2,2539.7,3.93736]
[1725308445974,6.93673,2540.2,2539.8,3.93731]
[1725308446180,3.93673,2540.2,2539.8,3.93731]
[1725308446407,3.93673,2540.2,2539.9,0.16990983]
[1725308447320,3.93654,2540.3,2539.9,0.16990983]
[1725308450531,3.93654,2540.3,2539.9,4.10705983]
[1725308453710,5.42485123,2540.4,2539.9,4.10705983]
[1725308453888,7.48657,2540.3,2539.9,0.16990983]
[1725308454233,9.49693991,2540.3,2539.9,4.10705983]
[1725308456098,5.56036991,2540.3,2539.9,4.10705983]
[1725308459452,5.56036991,2540.3,2540.0,3.93693]
[1725308459605,3.0,2540.3,2540.2,3.93669]
[1725308459931,0.1257395,2540.4,2540.2,4.10500793]
[1725308462846,0.1257395,2540.4,2540.3,10.38170479]
[1725308463044,0.1257395,2540.4,2540.3,10.54985417]
[1725308463249,0.1257395,2540.4,2540.3,6.53458938]
[1725308463468,0.1257395,2540.4,2540.3,0.16814938]
[1725308463812,0.1257395,2540.4,2540.2,3.93668]
[1725308464112,0.1257395,2540.4,2540.3,0.16805687]
[1725308464327,0.1257395,2540.4,2540.3,4.10459687]
[1725308464633,0.1257395,2540.4,2540.3,4.99153071]
[1725308464841,0.1257395,2540.4,2540.3,5.15958758]
[1725308466726,0.1257395,2540.4,2540.3,4.10459687]
[1725308467110,0.1257395,2540.4,2540.3,0.16805687]
[1725308467567,0.1257395,2540.4,2540.2,3.93659]
[1725308467716,0.1257395,2540.4,2540.3,0.16805687]
[1725308468247,0.1257395,2540.4,2540.2,3.93659]
[1725308468473,0.1257395,2540.4,2540.3,0.16805687]
[1725308468772,0.1257395,2540.4,2540.1,2.4299]
[1725308468773,0.1257395,2540.4,2540.1,6.36672]
[1725308468980,0.1257395,2540.4,2540.3,0.16805687]
[1725308469276,10.18578,2540.3,2540.2,0.16814524]
[1725308469489,3.93707,2540.0,2539.5,6.19756]
[1725308470547,3.9372,2539.9,2539.5,2.2598]
[1725308471451,3.93707,2540.0,2539.5,6.19755]
[1725308472949,3.93685,2540.1,2539.6,3.93761]
[1725308473753,3.93685,2540.1,2539.6,3.93752]
[1725308474941,3.93685,2540.1,2539.6,7.87507]
[1725308475172,3.93685,2540.1,2539.6,3.93752]
[1725308476646,3.93702,2540.0,2539.6,3.93752]
[1725308477414,3.9372,2539.9,2539.5,2.2598]
[1725308477688,3.93796,2539.4,2539.0,6.26753]
[1725308477870,3.93796,2539.4,2539.1,0.3951]
[1725308478183,3.93789,2539.5,2539.0,6.26757]
[1725308478383,3.93789,2539.5,2539.0,6.894327]
[1725308478583,3.93741,2539.8,2539.3,3.93809]
[1725308478884,7.87508,2539.7,2539.1,4.3335]
[1725308479181,7.87504,2539.7,2539.2,3.93815]
[1725308479487,3.93747,2539.7,2539.2,3.93815]
[1725308479688,7.87504,2539.7,2539.2,3.93815]
[1725308480050,3.93747,2539.7,2539.2,3.93815]
[1725308480660,3.93747,2539.7,2539.1,4.33349]
[1725308480874,3.93789,2539.5,2539.1,0.3951]
[1725308481445,3.93789,2539.5,2539.0,6.26756]
[1725308481787,3.93795,2539.4,2538.8,6.26796]
[1725308482085,3.93833,2539.2,2538.8,2.3291]
[1725308482643,3.93833,2539.2,2538.9,0.15827835]
[1725308482846,3.93855,2539.0,2538.9,0.15827835]
[1725308483083,10.54053817,2539.1,2538.5,6.26842]
[1725308483291,3.93842,2539.1,2538.5,6.934776]
[1725308483525,3.93842,2539.1,2538.6,4.09826985]
[1725308484573,7.87694,2539.1,2538.6,4.09826985]
[1725308484915,3.93842,2539.1,2538.6,4.09826985]
[1725308485216,7.8769,2539.1,2538.6,4.09826985]
[1725308485386,4.48856,2539.0,2538.6,0.15912985]
[1725308485587,3.93873,2538.9,2538.6,0.15912985]
[1725308485906,3.93873,2538.9,2538.4,6.26848]
[1725308486101,3.93873,2538.9,2538.7,0.15981274]
[1725308486277,3.93873,2538.9,2538.4,10.20786]
[1725308486476,0.55,2539.0,2538.5,4.09923971]
[1725308486707,0.55,2539.0,2538.6,3.93916]
[1725308487012,0.55,2539.0,2538.5,0.15998971]
[1725308487013,3.93894,2538.8,2538.5,0.15998971]
[1725308487221,3.93894,2538.8,2538.7,0.15981274]
[1725308487222,4.636344,2538.8,2538.7,0.15981274]
[1725308487403,3.93894,2538.8,2538.6,0.15990739]
[1725308487610,3.93902,2538.7,2538.2,9.7227]
[1725308487772,3.93935,2538.5,2538.0,11.22]
[1725308488112,3.93935,2538.5,2538.0,7.28]
[1725308488113,3.93953,2538.4,2538.0,7.28]
[1725308488692,3.93953,2538.4,2538.0,11.2201]
[1725308489011,10.28479,2538.6,2538.0,11.2201]
[1725308489177,5.38670082,2538.5,2538.0,11.2201]
[1725308490774,5.38670082,2538.5,2538.0,15.16012]
[1725308491009,1.44735082,2538.5,2538.0,15.16012]
[1725308491309,5.38669082,2538.5,2538.0,11.22002]
[1725308491534,5.38669082,2538.5,2538.0,3.94002]
[1725308492058,5.38669082,2538.5,2538.0,7.88003]
[1725308492212,1.44735082,2538.5,2538.1,3.93995]
[1725308492838,1.44735082,2538.5,2538.2,3.93979]
[1725308493034,3.93919,2538.6,2538.2,3.93979]
[1725308493234,3.0,2538.8,2538.3,2.4427]
[1725308493440,3.0,2538.8,2538.4,3.93937]
[1725308493755,3.0,2538.9,2538.4,7.87873]
[1725308493938,3.93921,2538.6,2538.2,3.93966]
[1725308494272,1.05336382,2538.9,2538.4,3.93935]
[1725308494415,1.05336382,2538.9,2538.5,3.93933]
[1725308494756,4.99207382,2538.9,2538.5,3.93933]
[1725308495054,4.58693738,2538.8,2538.4,3.93948]
[1725308495357,4.58693738,2538.8,2538.1,6.38253]
[1725308495358,8.52580738,2538.8,2538.3,3.9396]
[1725308495865,3.93904,2538.7,2538.2,3.93971]
[1725308496040,3.93904,2538.7,2538.2,7.87942]
[1725308496242,8.52580738,2538.8,2538.3,3.93964]
[1725308496923,12.46481738,2538.8,2538.3,3.93964]
[1725308497141,3.93906,2538.7,2538.2,3.93971]
[1725308497467,8.52580738,2538.8,2538.3,3.93958]
[1725308497654,3.0,2538.8,2538.4,3.93947]
[1725308497830,4.05336382,2538.9,2538.4,4.10020267]
[1725308498030,0.55,2538.8,2538.4,4.10020267]
[1725308498942,4.48887,2538.8,2538.4,4.10020267]
[1725308499668,4.48887,2538.8,2538.4,0.16073267]
[1725308500166,5.73695938,2538.8,2538.4,0.16073267]
[1725308501967,1.79808938,2538.8,2538.4,4.10010267]
[1725308502169,3.55,2538.8,2538.4,4.10010267]
[1725308502475,0.55,2538.8,2538.4,8.03949267]
[1725308502930,3.0,2538.9,2538.7,3.939]
[1725308503130,3.0,2538.9,2538.5,6.22819]
[1725308503131,3.0,2539.0,2538.5,10.16743]
[1725308503381,3.0,2539.0,2538.8,0.16040962]
[1725308503669,1.11272182,2538.9,2538.6,3.93916]
[1725308503972,3.0,2539.0,2538.6,3.93916]
[1725308504731,3.0,2539.0,2538.7,3.93899]
[1725308504966,3.0,2539.1,2538.7,3.93899]
[1725308505165,0.55,2539.0,2538.7,3.93899]
[1725308505372,0.55,2539.0,2538.6,3.93916]
[1725308506238,0.55,2539.0,2538.6,7.87826]
[1725308507188,0.55,2539.0,2538.6,3.9391]
[1725308508073,7.37868955,2539.0,2538.6,3.9391]
[1725308508573,13.81672955,2539.0,2538.5,2.2889]
[1725308508869,9.87808955,2539.0,2538.4,7.87873]
[1725308509050,13.81672955,2539.0,2538.4,7.87873]
[1725308509447,13.81672955,2539.0,2538.4,3.93935]
[1725308509672,9.87808955,2539.0,2538.4,7.87876]
[1725308510069,13.81675955,2539.0,2538.4,7.87876]
[1725308510274,9.87808955,2539.0,2538.4,7.87876]
[1725308510492,3.93871,2538.9,2538.4,7.87875]
[1725308510986,9.87808955,2539.0,2538.4,3.93935]
[1725308511191,3.93879,2538.9,2538.4,3.93935]
[1725308511363,7.37868955,2539.0,2538.4,3.93935]
[1725308511559,10.17467555,2539.0,2538.5,3.93932]
[1725308511765,6.23601555,2539.0,2538.5,3.93932]
[1725308512006,3.93875,2538.9,2538.4,3.93935]
[1725308512763,0.55,2539.0,2538.6,6.24839]
[1725308512972,8.68594555,2539.1,2538.6,6.24839]
[1725308513168,6.93849,2539.1,2538.7,0.16026962]
[1725308513507,6.93849,2539.1,2538.7,4.09926962]
[1725308513508,3.0,2539.1,2538.7,4.09926962]
[1725308513703,6.93841,2539.1,2538.7,4.09926962]
[1725308514198,8.20082856,2539.1,2538.7,0.16026962]
[1725308519675,4.26241856,2539.1,2538.7,4.09927962]
[1725308519881,3.0,2539.1,2538.7,4.09927962]
[1725308520211,7.96298555,2539.4,2538.7,4.09927962]
[1725308520388,3.93825,2539.2,2538.7,4.09927962]
[1725308520594,3.93825,2539.2,2538.7,5.13405958]
[1725308521784,4.48809,2539.3,2538.8,3.93885]
[1725308522182,4.48809,2539.3,2538.9,0.16003094]
[1725308523608,0.55,2539.3,2538.9,4.09872094]
[1725308523808,3.0,2539.3,2539.0,6.35808]
[1725308524017,1.74745555,2539.4,2539.0,6.35808]
[1725308524189,5.68542555,2539.4,2539.1,0.15979847]
[1725308524387,3.0,2539.3,2539.1,0.15979847]
[1725308524629,6.93813,2539.3,2539.1,0.15979847]
[1725308524827,6.93813,2539.3,2538.8,6.35845]
[1725308525026,13.17981,2539.3,2539.2,0.15971002]
[1725308525331,12.23289855,2539.3,2538.7,11.21891]
[1725308525631,3.93839,2539.2,2538.7,11.21891]
[1725308525785,3.93842,2539.1,2538.8,0.16006384]
[1725308526167,3.93842,2539.1,2538.7,11.21891]
[1725308526489,3.93842,2539.1,2538.9,0.1599692]
[1725308526689,3.93842,2539.1,2538.8,0.16005767]
[1725308526927,3.93842,2539.1,2539.0,0.15988074]
[1725308527321,3.93842,2539.1,2538.7,7.28]
[1725308527632,3.93842,2539.1,2538.8,0.16005767]
[1725308527633,3.93863,2539.0,2538.8,0.16005767]
[1725308527990,3.93863,2539.0,2538.7,7.28]
[1725308528186,3.93863,2539.0,2538.9,0.16000625]
[1725308528465,3.93863,2539.0,2538.8,0.16009471]
[1725308528727,3.93863,2539.0,2538.7,7.28]
[1725308528728,3.93863,2539.0,2538.9,0.16000625]
[1725308529049,3.93863,2539.0,2538.7,7.28]
[1725308529214,3.93863,2539.0,2538.9,0.16000625]
[1725308529420,3.93863,2539.0,2538.8,0.16009471]
[1725308529621,3.93863,2539.0,2538.9,0.16000625]
[1725308530021,3.93872,2538.9,2538.7,7.28]